bitfinex/quotes_SOLUSD_20241213
["timestamp","ask_amount","ask_price","bid_price","bid_amount"]
[1734060124847,8.16917997,227.19,227.12,8.16917997]
[1734060125664,8.16917997,227.18,227.11,8.16917997]
[1734060126472,8.16917997,227.18,227.1,8.16917997]
[1734060127861,8.16917997,227.18,227.09,1.6535]
[1734060127862,20.0,227.23,227.13,8.16917997]
[1734060128063,28.16917997,227.23,227.15,8.16917997]
[1734060128969,28.16917997,227.23,227.16,8.16917997]
[1734060128970,20.0,227.23,227.16,8.16917997]
[1734060129185,5.20386893,227.3,227.18,9.78527997]
[1734060129353,8.16917997,227.25,227.18,9.78527997]
[1734060129950,4.33302893,227.31,227.2,8.16917997]
[1734060130158,8.16917997,227.28,227.2,8.16917997]
[1734060130854,8.16917997,227.27,227.19,8.16917997]
[1734060131160,8.16917997,227.21,227.12,6.5556]
[1734060131360,8.16917997,227.21,227.14,8.16917997]
[1734060131559,8.16917997,227.22,227.15,8.16917997]
[1734060131994,8.16917997,227.24,227.17,8.16917997]
[1734060133266,8.16917997,227.23,227.16,8.16917997]
[1734060133991,8.16917997,227.22,227.14,8.16917997]
[1734060134153,8.16917997,227.21,227.14,8.16917997]
[1734060134756,8.16917997,227.22,227.14,8.16917997]
[1734060134960,20.0,227.23,227.17,8.16917997]
[1734060135394,8.16917997,227.24,227.17,8.16917997]
[1734060136196,8.16917997,227.25,227.17,8.16917997]
[1734060136792,8.16917997,227.24,227.17,8.16917997]
[1734060138585,28.16917997,227.25,227.17,8.16917997]
[1734060139572,5.20386893,227.36,227.23,0.12549]
[1734060139773,8.16917997,227.36,227.28,8.16917997]
[1734060141692,8.16917997,227.36,227.29,8.16917997]
[1734060141868,12.534,227.46,227.3,8.16917997]
[1734060142073,12.534,227.46,227.29,8.16917997]
[1734060142074,8.16917997,227.37,227.29,8.16917997]
[1734060142282,20.0,227.43,227.32,8.16917997]
[1734060142488,20.0,227.43,227.31,8.16917997]
[1734060142489,8.16917997,227.39,227.31,8.16917997]
[1734060142997,8.16917997,227.37,227.29,8.16917997]
[1734060144308,8.16917997,227.34,227.28,7.9167]
[1734060144477,8.16917997,227.33,227.28,7.9167]
[1734060145805,8.16917997,227.34,227.28,7.9167]
[1734060149278,8.16917997,227.33,227.28,7.9167]
[1734060149496,8.16917997,227.34,227.28,7.9167]
[1734060149918,8.16917997,227.29,227.23,1.5957]
[1734060150073,8.16917997,227.26,227.23,1.5957]
[1734060151303,8.16917997,227.25,227.23,1.5957]
[1734060152100,8.16917997,227.24,227.17,7.6977]
[1734060152305,8.16917997,227.23,227.17,7.6977]
[1734060153012,8.16917997,227.24,227.17,15.86687997]
[1734060153607,8.16917997,227.21,227.17,7.6977]
[1734060154321,8.16917997,227.2,227.17,1.5771]
[1734060157919,8.16917997,227.22,227.17,1.5771]
[1734060159042,11.0001,227.27,227.12,7.17680107]
[1734060159043,8.16917997,227.2,227.13,8.16917997]
[1734060160113,8.16917997,227.19,227.12,16.32207997]
[1734060160316,8.16917997,227.18,227.12,16.32207997]
[1734060162131,8.16917997,227.17,227.12,8.1529]
[1734060162333,8.16917997,227.15,227.12,1.6364]
[1734060164112,8.16917997,227.14,227.08,0.5737797]
[1734060164461,8.16917997,227.13,227.08,0.5737797]
[1734060165931,8.16917997,227.12,227.08,0.5737797]
[1734060166233,8.16917997,227.09,227.08,0.5737797]
[1734060167231,12.80488458,227.09,227.08,0.5737797]
[1734060174142,36.70725858,227.09,227.08,0.5737797]
[1734060174353,36.83274858,227.09,227.08,0.5737797]
[1734060174920,66.83274858,227.09,227.08,0.5737797]
[1734060175450,66.83274858,227.09,226.93,1.72797628]
[1734060175451,137.9999203,227.0,226.93,12.80488458]
[1734060175739,12.80488458,226.99,226.93,12.80488458]
[1734060179240,12.80488458,226.96,226.91,1.6593]
[1734060179857,12.80488458,226.95,226.91,1.6593]
[1734060180064,12.80488458,226.97,226.91,12.80488458]
[1734060180356,12.80488458,226.96,226.9,12.80488458]
[1734060181354,12.80488458,226.96,226.89,12.80488458]
[1734060182055,12.80488458,226.96,226.9,12.80488458]
[1734060183244,11.0133,227.0,226.86,13.34949078]
[1734060183245,12.80488458,226.93,226.86,13.34949078]
[1734060183447,12.80488458,226.92,226.86,13.34949078]
[1734060185258,12.80488458,226.93,226.87,12.80488458]
[1734060185651,20.0,226.93,226.91,12.80488458]
[1734060186173,20.0,226.93,226.92,12.80488458]
[1734060187176,20.0,226.93,226.92,8.20496706]
[1734060187334,20.0,226.93,226.9,8.20496706]
[1734060187534,20.0,226.93,226.89,8.20496706]
[1734060188543,20.0,226.93,226.9,8.20496706]
[1734060191060,20.0,226.93,226.86,0.5446062]
[1734060191281,8.20496706,226.93,226.87,8.20496706]
[1734060191490,20.0,226.9,226.86,8.74957326]
[1734060191769,20.0,226.9,226.86,0.5446062]
[1734060192113,20.0,226.9,226.86,8.74957326]
[1734060192374,20.0,226.9,226.86,0.5446062]
[1734060192673,20.0,226.9,226.87,8.20496706]
[1734060192971,30.0,226.99,226.89,8.20496706]
[1734060192972,20.0,226.96,226.89,8.20496706]
[1734060193169,20.0,226.96,226.92,8.20496706]
[1734060193379,30.0,226.93,226.92,8.20496706]
[1734060194091,30.0,226.93,226.91,8.20496706]
[1734060194954,30.0,226.93,226.92,8.20496706]
[1734060195367,8.20496706,227.02,226.92,8.20496706]
[1734060195567,8.20496706,227.02,226.96,8.20496706]
[1734060195897,30.0,226.97,226.96,8.20496706]
[1734060196514,8.20496706,227.02,226.95,8.20496706]
[1734060196817,8.20496706,227.04,226.97,8.20496706]
[1734060197103,8.20496706,227.05,226.98,8.20496706]
[1734060197272,30.0,226.99,226.98,8.20496706]
[1734060197587,8.20496706,227.05,226.98,8.20496706]
[1734060197969,20.0,227.02,226.96,8.20496706]
[1734060198173,20.0,227.02,226.89,1.5348]
[1734060198174,28.20496706,227.02,226.95,8.20496706]
[1734060199789,20.0,227.02,226.96,8.20496706]
[1734060200380,20.0,227.01,226.97,8.20496706]
[1734060201095,20.0,227.04,226.97,8.20496706]
[1734060201414,8.20496706,227.1,227.02,8.20496706]
[1734060201580,8.20496706,227.1,227.03,8.20496706]
[1734060201980,8.20496706,227.1,227.02,8.20496706]
[1734060202490,8.20496706,227.11,227.04,8.20496706]
[1734060202697,20.0,227.08,227.03,8.20496706]
[1734060202901,11.0061,227.15,227.06,8.20496706]
[1734060203202,11.0061,227.15,226.98,1.6276]
[1734060203203,8.20496706,227.14,227.07,8.20496706]
[1734060203496,8.20496706,227.13,227.05,8.20496706]
[1734060203882,8.20496706,227.14,227.06,8.20496706]
[1734060204192,8.20496706,227.19,227.12,8.20496706]
[1734060204399,30.0,227.13,227.12,8.20496706]
[1734060204780,30.0,227.13,227.11,8.20496706]
[1734060205175,20.0,227.15,227.11,12.79644148]
[1734060206594,20.0,227.16,227.13,12.79644148]
[1734060206904,20.0,227.17,227.13,12.79644148]
[1734060207088,20.0,227.16,227.11,12.79644148]
[1734060207473,19.5,227.15,227.11,12.79644148]
[1734060207979,19.5,227.15,227.12,12.79644148]
[1734060208301,12.79644148,227.21,227.13,12.79644148]
[1734060208606,12.79644148,227.21,227.14,12.79644148]
[1734060209401,20.0,227.18,227.14,12.79644148]
[1734060209587,20.0,227.18,227.08,1.6134]
[1734060209588,20.0,227.18,227.12,12.79644148]
[1734060209788,20.0,227.18,227.08,1.6134]
[1734060209789,32.79644148,227.18,227.1,12.79644148]
[1734060213002,32.79644148,227.18,227.08,1.6134]
[1734060213003,12.79644148,227.16,227.09,12.79644148]
[1734060213987,12.79644148,227.16,227.08,1.6134]
[1734060213988,20.0,227.18,227.08,14.40984148]
[1734060214201,12.79644148,227.13,227.06,12.79644148]
[1734060214588,12.79644148,227.14,227.07,12.79644148]
[1734060215600,12.79644148,227.14,227.02,8.0613]
[1734060215601,12.79644148,227.13,227.06,12.79644148]
[1734060215804,12.79644148,227.11,227.04,12.79644148]
[1734060216009,12.79644148,227.12,227.05,12.79644148]
[1734060217285,12.79644148,227.1,227.03,12.79644148]
[1734060217484,14.31094148,227.15,227.02,1.5676]
[1734060217485,12.79644148,227.09,227.02,14.36404148]
[1734060217883,20.0,227.08,227.04,12.79644148]
[1734060218511,20.0,227.08,227.03,12.79644148]
[1734060219587,20.0,227.08,227.04,12.79644148]
[1734060221094,20.0,227.08,227.03,12.79644148]
[1734060221603,12.79644148,227.1,227.03,12.79644148]
[1734060222802,12.79644148,227.09,227.02,14.36404148]
[1734060222988,12.79644148,227.09,227.02,12.79644148]
[1734060223188,12.79644148,227.08,227.01,12.79644148]
[1734060223503,12.79644148,227.09,227.02,12.79644148]
[1734060226299,12.79644148,227.08,227.01,12.79644148]
[1734060227213,8.19701861,227.08,227.01,8.19701861]
[1734060228408,8.19701861,227.09,227.02,8.19701861]
[1734060228910,23.776884,227.09,227.03,8.19701861]
[1734060230891,23.776884,227.09,227.02,8.19701861]
[1734060232416,31.97390261,227.09,227.02,8.19701861]
[1734060236119,31.97390261,227.09,226.97,8.2054]
[1734060236120,20.0,227.06,226.97,8.2054]
[1734060236324,28.19701861,227.06,226.99,8.19701861]
[1734060236504,8.19701861,227.05,226.98,8.19701861]
[1734060237913,30.0,227.04,226.98,8.19701861]
[1734060238421,38.19701861,227.04,226.98,8.19701861]
[1734060238622,38.19701861,227.04,226.97,8.19701861]
[1734060240516,8.19701861,227.0,226.93,8.19701861]
[1734060240711,8.19701861,226.99,226.93,8.19701861]
[1734060240920,8.19701861,226.98,226.91,8.19701861]
[1734060242251,8.19701861,226.97,226.86,3.93849685]
[1734060242406,8.19701861,226.96,226.9,8.19701861]
[1734060242909,8.19701861,226.96,226.89,8.19701861]
[1734060243912,8.19701861,226.94,226.88,8.19701861]
[1734060244112,8.19701861,226.95,226.88,8.19701861]
[1734060245326,8.19701861,226.91,226.86,0.5446062]
[1734060246309,8.19701861,226.89,226.86,0.5446062]
[1734060246510,8.19701861,226.91,226.86,0.5446062]
[1734060246712,8.19701861,226.9,226.86,0.5446062]
[1734060247116,30.0,226.88,226.86,0.5446062]
[1734060248545,8.19701861,226.89,226.86,0.5446062]
[1734060250520,8.19701861,226.88,226.86,0.5446062]
[1734060251118,8.19701861,226.87,226.86,0.5446062]
[1734060252941,38.19701861,226.87,226.86,0.5446062]
[1734060254232,30.0,226.87,226.86,0.5446062]
[1734060255318,8.19701861,226.89,226.86,0.5446062]
[1734060256333,11.0155,226.96,226.86,0.5446062]
[1734060256642,8.19701861,226.92,226.86,0.5446062]
[1734060256838,8.19701861,226.94,226.87,8.19701861]
[1734060257622,20.0,226.91,226.87,8.19701861]
[1734060258444,20.0,226.91,226.86,8.74162481]
[1734060258630,11.0134,227.0,226.89,8.19701861]
[1734060258828,8.19701861,226.96,226.89,8.19701861]
[1734060261540,8.19701861,226.95,226.88,8.19701861]
[1734060264852,8.19701861,226.96,226.88,8.19701861]
[1734060265433,8.19701861,226.97,226.89,8.19701861]
[1734060268157,28.19701861,226.97,226.9,8.19701861]
[1734060270382,28.19701861,226.97,226.89,8.19701861]
[1734060270561,28.19701861,226.97,226.86,0.5446062]
[1734060270562,8.19701861,226.93,226.86,8.74162481]
[1734060270853,8.19701861,226.92,226.86,0.5446062]
[1734060271060,8.19701861,226.9,226.86,0.5446062]
[1734060272362,8.19701861,226.91,226.86,0.5446062]
[1734060272961,8.19701861,226.9,226.86,0.5446062]
[1734060273269,30.0,226.89,226.86,0.5446062]
[1734060274048,8.19701861,226.9,226.86,0.5446062]
[1734060274680,8.19701861,226.89,226.86,0.5446062]
[1734060275051,30.0,226.88,226.86,0.5446062]
[1734060276057,38.19701861,226.88,226.86,0.5446062]
[1734060277054,8.19701861,226.87,226.86,0.5446062]
[1734060277261,38.19701861,226.87,226.86,0.5446062]
[1734060277765,30.0,226.87,226.86,0.5446062]
[1734060282570,38.19701861,226.87,226.86,0.5446062]
[1734060282942,62.09939261,226.87,226.86,0.5446062]
[1734060283150,62.22488261,226.87,226.86,0.5446062]
[1734060284950,32.22488261,226.87,226.86,0.5446062]
[1734060287849,62.22488261,226.87,226.86,0.5446062]
[1734060289654,32.22488261,226.87,226.86,0.5446062]
[1734060292773,62.22488261,226.87,226.86,0.5446062]
[1734060295760,54.027864,226.87,226.86,0.5446062]
[1734060295970,30.0,226.87,226.86,0.5446062]
[1734060296162,38.19701861,226.87,226.86,0.5446062]
[1734060309167,30.0,226.87,226.86,0.5446062]
[1734060309680,8.19701861,226.89,226.86,0.5446062]
[1734060310096,8.19701861,226.88,226.86,0.5446062]
[1734060313509,0.80171356,226.94,226.86,0.5446062]
[1734060313510,28.19701861,226.9,226.86,0.5446062]
[1734060314195,8.19701861,226.91,226.86,0.5446062]
[1734060314395,8.19701861,226.9,226.86,0.5446062]
[1734060314573,8.19701861,226.89,226.86,0.5446062]
[1734060319102,31.0163,226.94,226.86,0.5446062]
[1734060319396,8.19701861,226.9,226.86,0.5446062]
[1734060322996,8.19701861,226.91,226.86,0.5446062]
[1734060327201,28.19701861,226.87,226.86,0.5446062]
[1734060330593,28.44799861,226.87,226.86,0.5446062]
[1734060330797,82.22488261,226.87,226.86,0.5446062]
[1734060335523,74.027864,226.87,226.86,0.5446062]
[1734060335722,82.22488261,226.87,226.86,0.5446062]
[1734060337710,81.97390261,226.87,226.86,0.5446062]
[1734060339201,50.0,226.87,226.86,0.5446062]
[1734060339405,38.19701861,226.87,226.86,0.5446062]
[1734060341214,30.0,226.87,226.86,0.5446062]
[1734060341423,38.19701861,226.87,226.86,0.5446062]
[1734060341916,30.0,226.87,226.86,0.5446062]
[1734060342419,8.19701861,226.88,226.86,0.5446062]
[1734060345135,8.19701861,226.9,226.86,0.5446062]
[1734060346203,8.19701861,226.89,226.86,0.5446062]
[1734060347611,20.0,226.93,226.86,0.5446062]
[1734060347811,8.19701861,226.89,226.86,0.5446062]
[1734060355219,23.902374,226.95,226.86,0.5446062]
[1734060355220,8.19701861,226.88,226.86,0.5446062]
[1734060355817,8.19701861,226.87,226.86,0.5446062]
[1734060356336,38.19701861,226.87,226.86,0.5446062]
[1734060357143,61.97390261,226.87,226.86,0.5446062]
[1734060359415,53.776884,226.87,226.86,0.5446062]
[1734060359615,61.97390261,226.87,226.86,0.5446062]
[1734060360108,38.19701861,226.87,226.86,0.5446062]
[1734060361032,62.09939261,226.87,226.86,0.5446062]
[1734060362033,20.0,226.83,226.78,1.6012]
[1734060362236,8.19701861,226.81,226.74,8.19701861]
[1734060363135,20.0,226.83,226.73,1.5407]
[1734060363136,8.19701861,226.8,226.73,1.5407]
[1734060363337,8.19701861,226.8,226.73,9.73771861]
[1734060364621,30.0,226.79,226.73,9.73771861]
[1734060364822,8.19701861,226.8,226.73,9.73771861]
[1734060365832,8.19701861,226.8,226.74,8.19701861]
[1734060370536,8.19701861,226.8,226.73,1.5407]
[1734060370729,8.19701861,226.8,226.74,8.19701861]
[1734060373848,20.0,226.87,226.77,8.19701861]
[1734060374142,8.19701861,226.84,226.78,8.19701861]
[1734060375150,8.19701861,226.84,226.73,1.5407]
[1734060375352,8.19701861,226.84,226.77,8.19701861]
[1734060375531,8.19701861,226.84,226.73,1.5407]
[1734060375741,8.19701861,226.81,226.75,8.19701861]
[1734060376946,8.19701861,226.82,226.75,8.19701861]
[1734060380652,8.19701861,226.82,226.76,8.19701861]
[1734060381933,8.19701861,226.83,226.76,8.19701861]
[1734060382334,8.19701861,226.84,226.78,8.19701861]
[1734060385855,8.19701861,226.85,226.78,8.19701861]
[1734060386257,8.19701861,226.84,226.78,8.19701861]
[1734060389254,8.19701861,226.84,226.73,1.5407]
[1734060389556,8.19701861,226.84,226.78,8.19701861]
[1734060390851,28.19701861,226.86,226.79,8.19701861]
[1734060391051,28.19701861,226.86,226.74,0.66139403]
[1734060391052,28.19701861,226.86,226.8,8.19701861]
[1734060391645,20.0,226.86,226.82,8.19701861]
[1734060391862,20.0,226.85,226.81,8.19701861]
[1734060392159,8.19701861,226.87,226.8,14.85331861]
[1734060392367,20.0,226.88,226.8,14.85331861]
[1734060392571,8.19701861,226.86,226.8,14.85331861]
[1734060395660,23.776884,226.91,226.8,14.85331861]
[1734060395874,28.19701861,226.88,226.81,8.19701861]
[1734060396363,5.12298144,226.95,226.82,1.5762]
[1734060396563,45.20755457,227.01,226.87,8.19701861]
[1734060396564,8.19701861,226.94,226.87,8.19701861]
[1734060396859,30.0,226.88,226.87,8.19701861]
[1734060397039,8.19701861,226.94,226.87,8.19701861]
[1734060397639,8.19701861,226.93,226.87,8.19701861]
[1734060399043,8.19701861,226.92,226.82,2.23734733]
[1734060399258,8.19701861,226.91,226.85,8.19701861]
[1734060400867,8.19701861,226.92,226.85,8.19701861]
[1734060401782,8.19701861,226.91,226.85,8.19701861]
[1734060402067,8.19701861,226.9,226.84,8.19701861]
[1734060402440,8.19701861,226.9,226.82,1.5762]
[1734060402637,8.19701861,226.91,226.85,8.19701861]
[1734060403769,20.0,226.95,226.87,8.19701861]
[1734060404065,20.0,226.95,226.88,8.19701861]
[1734060404269,8.19701861,226.94,226.88,8.19701861]
[1734060404848,8.19701861,226.94,226.87,8.19701861]
[1734060405048,8.19701861,226.93,226.86,8.19701861]
[1734060409485,8.19701861,226.93,226.87,8.19701861]
[1734060412191,8.19701861,226.93,226.86,8.19701861]
[1734060413057,8.19701861,226.93,226.82,2.23731361]
[1734060413251,8.19701861,226.93,226.86,8.19701861]
[1734060415903,8.19701861,226.93,226.87,8.19701861]
[1734060416507,8.19701861,226.94,226.87,8.19701861]
[1734060417005,20.0,226.95,226.87,8.19701861]
[1734060417332,8.19701861,226.94,226.88,8.19701861]
[1734060418088,20.0,226.96,226.88,8.19701861]
[1734060418279,8.19701861,226.94,226.88,8.19701861]
[1734060418604,8.19701861,226.94,226.87,8.19701861]
[1734060420603,20.0,226.96,226.88,8.19701861]
[1734060420781,28.19701861,226.96,226.89,8.19701861]
[1734060421127,20.0,226.94,226.9,8.19701861]
[1734060422105,20.0,226.94,226.87,6.5093]
[1734060422515,20.0,226.94,226.89,8.19701861]
[1734060424623,20.0,226.94,226.87,6.5093]
[1734060424873,20.0,226.94,226.89,8.19701861]
[1734060425138,20.0,226.94,226.87,6.5093]
[1734060425609,20.0,226.94,226.89,8.19701861]
[1734060425806,20.0,226.94,226.9,8.19701861]
[1734060426814,20.0,226.94,226.89,8.19701861]
[1734060428427,8.19701861,226.91,226.82,8.0699]
[1734060428630,8.19701861,226.9,226.84,8.19701861]
[1734060429046,8.19701861,226.91,226.85,8.19701861]
[1734060430350,20.0,226.91,226.88,8.19701861]
[1734060431152,11.0137,226.99,226.88,8.19701861]
[1734060431320,8.19701861,226.94,226.88,8.19701861]
[1734060432235,8.19701861,226.94,226.87,8.19701861]
[1734060433235,8.19701861,226.93,226.87,8.19701861]
[1734060434450,8.19701861,226.92,226.82,8.73104058]
[1734060434620,8.19701861,226.91,226.85,8.19701861]
[1734060434814,8.19701861,226.9,226.82,8.0699]
[1734060435031,8.19701861,226.9,226.84,8.19701861]
[1734060436039,8.19701861,226.89,226.75,7.7724]
[1734060436221,38.19701861,226.88,226.82,8.19701861]
[1734060436839,30.0,226.88,226.84,8.19701861]
[1734060440549,30.0,226.88,226.83,8.19701861]
[1734060441251,30.0,226.88,226.84,8.19701861]
[1734060441639,8.19701861,226.91,226.85,8.19701861]
[1734060441845,28.19701861,226.92,226.86,8.19701861]
[1734060442428,20.0,226.95,226.87,8.19701861]
[1734060442633,8.19701861,226.94,226.87,8.19701861]
[1734060443330,8.19701861,226.93,226.87,8.19701861]
[1734060445141,28.19701861,226.95,226.88,8.19701861]
[1734060445730,20.0,226.98,226.88,8.19701861]
[1734060445938,8.19701861,226.95,226.89,8.19701861]
[1734060447745,8.19701861,226.92,226.83,1.5877]
[1734060448052,8.19701861,226.92,226.85,8.19701861]
[1734060448248,8.19701861,226.92,226.86,8.19701861]
[1734060448743,20.0,226.94,226.86,8.19701861]
[1734060448945,8.19701861,226.92,226.86,8.19701861]
[1734060450646,20.0,226.94,226.88,8.19701861]
[1734060451244,28.19701861,226.94,226.88,8.19701861]
[1734060453042,20.0,226.96,226.88,8.19701861]
[1734060453239,8.19701861,226.95,226.88,8.19701861]
[1734060453863,8.19701861,226.95,226.91,0.08474677]
[1734060454659,8.19701861,226.94,226.91,0.08474677]
[1734060455448,8.19701861,226.95,226.91,0.08474677]
[1734060456566,28.19701861,226.96,226.91,0.08474677]
[1734060458171,8.19701861,226.95,226.91,0.08474677]
[1734060458454,8.19701861,226.94,226.91,0.08474677]
[1734060463063,8.19701861,226.95,226.91,0.08474677]
[1734060463265,24.027864,226.95,226.91,0.08474677]
[1734060463440,38.19701861,226.92,226.91,0.08474677]
[1734060467347,23.776884,226.88,226.76,1.514]
[1734060467658,23.776884,226.88,226.8,8.19701861]
[1734060467659,8.19701861,226.86,226.8,8.19701861]
[1734060468059,38.19701861,226.87,226.8,8.19701861]
[1734060468261,38.19701861,226.87,226.81,8.19701861]
[1734060468691,8.19701861,226.87,226.81,8.19701861]
[1734060470149,8.19701861,226.84,226.76,1.514]
[1734060470370,8.19701861,226.84,226.77,8.19701861]
[1734060471665,8.19701861,226.82,226.76,9.71101861]
[1734060473956,8.19701861,226.79,226.68,12.5425]
[1734060474162,8.19701861,226.78,226.72,8.19701861]
[1734060474667,8.19701861,226.78,226.73,8.19701861]
[1734060476586,8.19701861,226.78,226.72,8.19701861]
[1734060477758,8.19701861,226.78,226.68,1.514]
[1734060477759,8.19701861,226.8,226.74,8.19701861]
[1734060477982,38.19701861,226.81,226.74,8.19701861]
[1734060479285,8.19701861,226.8,226.74,8.19701861]
[1734060479771,38.19701861,226.81,226.75,8.19701861]
[1734060479966,30.0,226.81,226.75,8.19701861]
[1734060480483,38.19701861,226.81,226.75,8.19701861]
[1734060480877,30.0,226.81,226.77,8.19701861]
[1734060482180,8.19701861,226.82,226.77,8.19701861]
[1734060482608,3.63029076,226.9,226.79,8.19701861]
[1734060482779,18.8602,226.92,226.79,8.19701861]
[1734060483098,8.19701861,226.85,226.79,8.19701861]
[1734060483296,18.8602,226.92,226.78,8.19701861]
[1734060483297,8.19701861,226.84,226.78,8.19701861]
[1734060484082,8.19701861,226.85,226.79,8.19701861]
[1734060484973,24.027864,226.91,226.75,1.64]
[1734060484974,8.19701861,226.84,226.78,8.19701861]
[1734060486180,20.0,226.88,226.8,8.19701861]
[1734060486382,20.0,226.83,226.8,8.19701861]
[1734060486887,20.0,226.83,226.79,8.19701861]
[1734060487409,20.0,226.88,226.81,8.19701861]
[1734060487705,1.30136856,226.93,226.87,8.19701861]
[1734060487876,8.19701861,226.96,226.9,8.19701861]
[1734060488278,8.19701861,226.95,226.89,8.19701861]
[1734060488491,8.19701861,226.9,226.77,8.91891005]
[1734060488889,30.0,226.97,226.77,8.91891005]
[1734060489089,8.19701861,226.9,226.84,8.19701861]
[1734060489301,8.19701861,226.9,226.77,10.65149538]
[1734060489518,8.19701861,226.9,226.84,8.19701861]
[1734060489888,30.0,226.89,226.84,8.19701861]
[1734060490427,30.0,226.89,226.88,8.19701861]
[1734060491119,20.0,226.91,226.87,8.19701861]
[1734060496240,20.0,226.91,226.86,8.19701861]
[1734060496610,20.0,226.91,226.82,0.66111995]
[1734060496830,8.19701861,226.9,226.84,8.19701861]
[1734060498146,20.0,226.95,226.8,0.66112392]
[1734060498147,8.19701861,226.91,226.8,0.66112392]
[1734060498311,8.19701861,226.9,226.84,8.19701861]
[1734060498514,8.19701861,226.9,226.85,8.19701861]
[1734060499418,8.19701861,226.91,226.85,8.19701861]
[1734060500436,20.0,226.91,226.86,8.19701861]
[1734060501028,20.0,226.91,226.8,0.66112392]
[1734060501029,20.0,226.91,226.87,8.19701861]
[1734060501243,20.0,226.91,226.8,0.66112392]
[1734060501414,20.0,226.91,226.87,8.19701861]
[1734060501615,20.0,226.95,226.88,8.19701861]
[1734060501847,8.19701861,226.94,226.88,8.19701861]
[1734060502223,20.0,226.95,226.88,8.19701861]
[1734060502546,8.19701861,226.94,226.88,8.19701861]
[1734060504353,20.0,226.95,226.89,8.19701861]
[1734060504354,8.19701861,226.95,226.89,8.19701861]
[1734060506258,43.776884,226.99,226.9,8.19701861]
[1734060506551,8.19701861,226.99,226.93,8.19701861]
[1734060507210,9.39710134,227.05,226.93,8.19701861]
[1734060507416,8.19701861,227.01,226.94,8.19701861]
[1734060509244,20.0,226.98,226.94,8.19701861]
[1734060509448,8.19701861,227.0,226.94,8.19701861]
[1734060510538,20.0,227.02,226.95,8.19701861]
[1734060510721,8.19701861,227.01,226.95,8.19701861]
[1734060511357,20.0,227.03,226.95,8.19701861]
[1734060511732,8.19701861,227.01,226.95,8.19701861]
[1734060512663,8.19701861,226.98,226.93,1.5014]
[1734060512829,8.19701861,226.97,226.93,1.5014]
[1734060513340,34.789184,227.02,226.87,1.582]
[1734060513542,8.19701861,226.93,226.87,1.582]
[1734060513750,8.19701861,226.92,226.87,1.582]
[1734060514549,8.19701861,226.93,226.87,9.77901861]
[1734060516453,20.0,226.99,226.92,8.19701861]
[1734060516627,8.19701861,227.03,226.96,8.19701861]
[1734060516936,8.19701861,227.03,226.89,0.25098]
[1734060517252,8.19701861,227.03,226.96,8.19701861]
[1734060517951,20.0,226.99,226.95,8.19701861]
[1734060518151,20.0,226.99,226.9,0.66086818]
[1734060518452,20.0,226.99,226.91,8.19701861]
[1734060518453,8.19701861,226.98,226.91,8.19701861]
[1734060519062,8.19701861,226.98,226.92,8.19701861]
[1734060521165,30.0,226.96,226.92,8.19701861]
[1734060526261,8.19701861,226.98,226.92,8.19701861]
[1734060526568,8.19701861,227.0,226.94,8.19701861]
[1734060526779,8.19701861,227.01,226.94,8.19701861]
[1734060528863,8.05570441,227.01,226.94,8.19701861]
[1734060529266,20.0,227.03,226.97,8.19701861]
[1734060529475,20.0,227.03,226.98,8.19701861]
[1734060530275,20.0,227.03,226.99,8.19701861]
[1734060530575,20.0,227.03,226.97,8.19701861]
[1734060530784,28.19701861,227.03,226.96,8.19701861]
[1734060530955,28.19701861,227.03,226.95,1.6069]
[1734060531160,28.19701861,227.03,226.96,8.19701861]
[1734060531847,8.19701861,227.02,226.95,9.80391861]
[1734060532856,28.19701861,227.03,226.96,8.19701861]
[1734060536164,28.19701861,227.03,226.97,8.19701861]
[1734060536866,28.19701861,227.03,226.95,1.6069]
[1734060537062,8.19701861,227.02,226.95,9.80391861]
[1734060539301,8.19701861,227.02,226.95,8.19701861]
[1734060542303,20.0,227.03,226.98,8.19701861]
[1734060542597,1.6254,227.1,226.98,8.19701861]
[1734060542598,20.0,227.04,226.98,8.19701861]
[1734060543281,8.19701861,227.05,226.98,8.19701861]
[1734060543796,8.19701861,227.05,226.94,0.6607581]
[1734060543797,8.19701861,226.99,226.89,8.1447]
[1734060543964,8.19701861,226.97,226.89,8.1447]
[1734060544166,8.19701861,226.97,226.9,8.19701861]
[1734060545495,8.19701861,226.91,226.84,8.1332]
[1734060545795,31.5779,227.02,226.84,1.6303]
[1734060545796,8.19701861,226.89,226.84,1.6303]
[1734060546091,8.19701861,226.91,226.85,8.19701861]
[1734060546495,8.19701861,226.92,226.85,8.19701861]
[1734060546700,20.0,226.95,226.88,8.19701861]